[Event "35th Roquetas Festival 2024"]
[Site "Roquetas de Mar"]
[Date "2024.01.04"]
[Round "5.6"]
[White "Peng, Li Min"]
[Black "Del Prado Rodriguez, Xulio"]
[Result "1/2-1/2"]
[ECO "D31"]
[WhiteElo "2575"]
[BlackElo "2294"]
[Annotator "TA"]
[PlyCount "155"]
[EventDate "2024.01.02"]
[EventType "swiss"]
[EventCountry "ESP"]
[SourceTitle "playchess.com"]
[Source "ChessBase"]
[SourceQuality "1"]
[TimeControl "5400+30"]

{[%evp 9,155,24,24,24,25,31,27,33,33,33,36,29,48,30,47,27,29,17,27,17,29,-83,-77,-77,-75,-77,-100,-217,-206,-255,-230,-234,-250,-247,-256,-243,-233,-275,-266,-294,-279,-326,-266,-379,-380,-377,-372,-324,-317,-475,-296,-385,-342,-393,-396,-384,-368,-430,-359,-426,-304,-512,-460,-1042,-266,-780,-775,-705,-670,-725,-434,-641,-343,-347,-344,-388,-385,-365,-389,-379,-375,-361,-346,-371,-309,-330,-327,-317,-311,-369,-339,-341,-365,-319,-364,-329,-363,-342,-340,-311,-314,-457,-457,-454,-450,-443,-435,-428,-417,-423,-383,-360,-243,-225,-191,-154,0,0,0,0,0,0,0,0,0,0,0,0,0,0,0,0,0,0,0,0,0,0,0,0,0,0,0,0,0,0,0,0]} 1. d4 {[%emt 0:06:43]} d5 {[%emt 0:00:34]} 2. c4 {[%emt 0:01:24]} e6 {[%emt 0:00:18]} 3. Nc3 {[%emt 0:00:08]} h6 {[%emt 0:00:39]} 4. cxd5 {[%emt 0:00:07]} exd5 {[%emt 0:00:08]} 5. Bf4 {[%emt 0:00:04]} Nf6 {[%emt 0:00:22]} 6. e3 {[%emt 0:00:11] D31: Queen's Gambit Declined: Semi-Slav without ...Nf6 (+ Marshall Gambit and Noteboom) and Exchange Variation lines without ...Nf6.} Bd6 {[%emt 0:00:24]} 7. Bxd6 {[%emt 0:00:26]} Qxd6 {[%emt 0:00:10]} 8. Rc1 {[%emt 0:00:13] White has an edge.} a6 {[%emt 0:05:00] Prevents Nb5} 9. Bd3 {[%emt 0:00:11]} O-O {[%emt 0:00:29]} 10. Nge2 {[%emt 0:00:14][%cal Bg1e2,Be2g3,Bg3f5][%mdl 32]} b6 {[%emt 0:00:08] [#]} 11. Ng3 $146 {[%emt 0:04:04]} ({Predecessor:} 11. Bb1 Rd8 12. h3 Nbd7 13. O-O Nf8 14. Ng3 Ra7 15. Qb3 Be6 16. Rfd1 Qd7 17. Rd2 Ng6 18. Qd1 Nh4 19. Nh5 Nxh5 20. Qxh5 Nf5 21. e4 Ne7 {0-1 Barath,K (2020)-Nurgali,N (2192) Paracin op 16th 2023 (5)}) 11... c5 {[%emt 0:07:45]} 12. dxc5 {[%emt 0:03:43]} bxc5 {[%emt 0:00:25]} 13. Na4 {[%emt 0:02:38]} Nbd7 $1 {[%emt 0:07:49]} (13... c4 14. Rxc4 Rd8 15. Rc2 $14) 14. Nf5 {[%emt 0:00:48]} Qe5 {[%emt 0:00:42]} 15. f4 {[%emt 0:00:33]} (15. Nxc5 $2 Nxc5 16. Nxh6+ gxh6 $19) (15. O-O $11 {remains equal.}) 15... Qe6 $1 $17 {[%emt 0:06:10]} 16. Nxc5 {[%emt 0:00:25]} Nxc5 {[%emt 0:00:40]} 17. Rxc5 {[%emt 0:00:04] [#]} Re8 $1 {[%emt 0:16:13]} 18. Qc1 {[%emt 0:31:14]} (18. Qc2 $17 {was worth a try.} Bd7 19. O-O) 18... Ne4 $19 {[%emt 0:04:25]} 19. Bxe4 {[%emt 0:12:54]} Qxe4 {[%emt 0:00:08]} 20. Ng3 {[%emt 0:00:02]} Qxg2 {[%emt 0:11:49]} (20... Qxe3+ 21. Qxe3 Rxe3+ 22. Kd2 $11) (20... Qxf4 21. Ne2 Qg4 22. Kf2 $17) 21. Qd2 {[%emt 0:00:49]} Qf3 {[%emt 0:01:36][%csl LRe3,LRf4]} 22. Rc3 {[%emt 0:03:54]} Qxf4 {[%emt 0:07:40]} 23. Rf1 {[%emt 0:00:29]} Qg5 {[%emt 0:03:48]} 24. Qd4 {[%emt 0:01:39]} Bh3 {[%emt 0:03:54]} 25. Rf4 {[%emt 0:00:04]} Rac8 {[%emt 0:00:43]} 26. Kd2 {[%emt 0:00:02]} (26. Kd1 $142) 26... Rxc3 {[%emt 0:00:56]} 27. Qxc3 {[%emt 0:00:02]} Rc8 {[%emt 0:01:53] Repels Qc7} 28. Qd3 {[%emt 0:00:01]} Qe5 {[%emt 0:02:12]} 29. Rd4 {[%emt 0:00:02]} (29. Qd4 $142 Qd6 30. Qd3) 29... Qc7 {[%emt 0:00:41] ...Qc1+ is the strong threat.} 30. Qc3 {[%emt 0:01:28] Inhibits Qc1+.} Qb6 {[%emt 0:00:11]} 31. Qb3 {[%emt 0:00:01]} Qa5+ {[%emt 0:02:09]} 32. Ke2 {[%emt 0:00:02]} Rc1 {[%emt 0:03:56]} 33. Kf3 {[%emt 0:00:01]} Be6 {[%emt 0:01:41]} 34. Rb4 {[%emt 0:01:23]} g6 {[%emt 0:03:58]} 35. a3 $2 {[%emt 0:01:53] White is weak on the light squares} (35. Rb8+ Kg7 36. Qb4 Qxb4 37. Rxb4) 35... d4 {[%emt 0:00:44][%cal Bd5d4,Bd4d3][%mdl 32]} 36. Rb8+ {[%emt 0:00:05]} (36. Qd3 $142 h5 37. Qxd4 (37. Rb8+ $2 Kh7 $19) 37... Bg4+ 38. Kg2 Rc2+ 39. Kg1) 36... Kg7 $2 {[%emt 0:00:24]} (36... Kh7 37. Qd3 Qe5) 37. Qb6 {[%emt 0:00:06]} (37. Qb4 Qxb4 38. Rxb4) 37... Qd5+ {[%emt 0:02:39]} 38. e4 {[%emt 0:02:50]} Qc4 {[%emt 0:00:05]} 39. Kf4 {[%emt 0:01:28]} d3 {[%emt 0:05:44]} 40. Qd6 {[%emt 0:00:20]} (40. Rd8 $142 Rb1 41. Qd4+ Qxd4 42. Rxd4) 40... Qc7 41. Qxc7 {[%emt 0:00:55]} Rxc7 {[%emt 0:00:12][%mdl 4096] Endgame KRB-KRN} 42. Ke3 {[%emt 0:00:03]} Rc2 {[%emt 0:00:23]} 43. Nf1 {[%emt 0:00:07]} Re2+ {[%emt 0:01:07]} 44. Kxd3 {[%emt 0:00:03]} Rf2 {[%emt 0:00:05]} 45. Nd2 {[%emt 0:00:40]} Rxh2 {[%emt 0:00:02]} 46. Rb6 {[%emt 0:00:02]} Bd7 {[%emt 0:00:28]} 47. Ke3 {[%emt 0:00:21]} Bb5 {[%emt 0:00:10]} 48. Rd6 {[%emt 0:00:01]} h5 {[%emt 0:00:10][%cal Bh6h5,Bh5h4][%mdl 32]} 49. e5 {[%emt 0:00:25]} h4 {[%emt 0:00:23]} 50. Nf3 {[%emt 0:00:20]} Re2+ {[%emt 0:01:08]} (50... Rxb2 $2 {is the wrong capture.} 51. Nxh4 Rb3+ 52. Kf4 $19) 51. Kf4 {[%emt 0:00:01]} h3 {[%emt 0:00:17]} (51... Rxb2 $2 {perishes.} 52. Nxh4 Rf2+ 53. Ke4 $19) 52. Kg3 {[%emt 0:00:16]} Rxb2 {[%emt 0:00:07] White must now prevent ...Rb3.} 53. Kxh3 {[%emt 0:00:56]} Rb3 {[%emt 0:00:06][%csl LRa3,LRf3]} 54. Kg2 {[%emt 0:00:46]} Rxa3 {[%emt 0:00:05]} 55. e6 {[%emt 0:00:02]} (55. Kf2 $142) 55... fxe6 {[%emt 0:01:03]} 56. Rxe6 {[%emt 0:00:04]} Bc4 {[%emt 0:01:30]} 57. Re5 {[%emt 0:00:37]} a5 {[%emt 0:00:32][%cal Ba6a5,Ba5a4,Ba4a3,Ba3a2][%mdl 32]} 58. Rc5 {[%emt 0:00:21]} Bd3 {[%emt 0:00:16] Threatens to win with ...Be4.} 59. Kf2 {[%emt 0:00:18]} a4 {[%emt 0:00:06] ...Ra1 would be deadly.} 60. Ra5 {[%emt 0:00:23]} Be4 {[%emt 0:01:02]} 61. Nd4 {[%emt 0:00:27]} Ra1 {[%emt 0:00:09]} 62. Ke3 {[%emt 0:00:19] [#]} Bf5 $2 {[%emt 0:00:35]} 63. Nxf5+ $11 {[%emt 0:00:57] The position is equal.} gxf5 {[%emt 0:00:06]} 64. Rxf5 {[%emt 0:00:03] KR-KR} a3 {[%emt 0:00:22]} 65. Rf2 {[%emt 0:00:07]} a2 {[%emt 0:01:18] Strongly threatening ...Re1+.} 66. Kf3 {[%emt 0:00:04]} Kf6 {[%emt 0:00:26]} 67. Kg2+ {[%emt 0:01:19]} Ke5 {[%emt 0:00:14]} 68. Kf3 {[%emt 0:00:46]} Kd4 {[%emt 0:01:16]} 69. Kf4 $1 {[%emt 0:00:09]} Kc3 {[%emt 0:00:16]} 70. Rf3+ {[%emt 0:00:07]} Kd4 {[%emt 0:01:04]} 71. Rf2 {[%emt 0:00:08]} Kd3 {[%emt 0:00:06]} 72. Kf3 $1 {[%emt 0:01:02]} Kc3 {[%emt 0:00:33] aiming for ...Kb3.} 73. Kf4 {[%emt 0:00:15]} Kc4 {[%emt 0:00:14]} 74. Kf5 {[%emt 0:00:57]} Kb3 {[%emt 0:00:17]} 75. Rf3+ {[%emt 0:00:20]} Kb2 {[%emt 0:00:06]} 76. Rf2+ {[%emt 0:00:09]} Kb3 {[%emt 0:00:05]} 77. Rf3+ {[%emt 0:00:03]} Kb2 {[%emt 0:00:07]} 78. Rf2+ {[%emt 0:00:04] Black had all chances to win.   Weighted Error Value: White=0.60/Black=0.46} 1/2-1/2

[Event "35th Roquetas Festival 2024"]
[Site "Roquetas de Mar"]
[Date "2024.01.04"]
[Round "5.7"]
[White "Fernandez, Daniel Howard"]
[Black "Schenderowitsch, Michael"]
[Result "1/2-1/2"]
[ECO "A05"]
[WhiteElo "2525"]
[BlackElo "2281"]
[Annotator "TA"]
[PlyCount "167"]
[EventDate "2024.01.02"]
[EventType "swiss"]
[EventCountry "ESP"]
[SourceTitle "playchess.com"]
[Source "ChessBase"]
[SourceQuality "1"]
[TimeControl "5400+30"]

{[%evp 9,167,0,5,0,0,0,0,0,0,0,0,0,0,0,0,0,0,0,14,7,0,0,0,0,0,0,0,0,8,0,14,0,10,9,0,0,61,61,56,30,35,27,37,2,18,19,34,40,25,0,0,0,0,0,0,-20,-20,-35,-34,-34,-28,-28,-29,-18,-10,-10,-9,-9,-9,-12,0,0,0,0,0,0,0,0,0,0,0,0,0,0,0,0,0,0,0,0,0,0,0,0,0,0,0,0,0,0,0,0,0,0,0,0,0,0,0,0,0,0,0,0,0,0,0,0,0,0,0,0,0,0,0,0,0,0,0,0,0,0,0,0,0,0,0,0,0,0,0,0,0,0,0,0,0,0,0,0,0,0,0,0,0,0,0,0,0,0]} 1. Nf3 {[%emt 0:11:46]} Nf6 {[%emt 0:00:20]} 2. c4 {[%emt 0:00:03]} e6 {[%emt 0:00:11]} 3. g3 {[%emt 0:00:19]} a6 {[%emt 0:00:57]} 4. Nc3 {[%emt 0:02:23]} d5 {[%emt 0:00:39]} 5. cxd5 {[%emt 0:00:10]} exd5 {[%emt 0:00:16]} 6. Bg2 {[%emt 0:00:04] A13: English Opening: 1...e6.} Be7 {[%emt 0:02:06]} 7. O-O {[%emt 0:06:38]} O-O {[%emt 0:00:16]} 8. d3 {[%emt 0:00:25]} d4 {[%emt 0:13:41]} 9. Ne4 {[%emt 0:00:03]} Nc6 {[%cal Bb8c6,Bc6b4,Bb4a2][%mdl 32] [#]} 10. b3 $146 {[%emt 0:10:33]} ({Predecessor:} 10. Nxf6+ Bxf6 11. Nd2 Be6 12. b3 Bd5 13. Bh3 Re8 14. Ba3 Be7 15. Bb2 Bc5 16. a3 {½-½ Moor,R (2337)-Lehtivaara,P (2360) SUI-chT Switzerland 2009 (2.5)}) 10... Nd5 {[%emt 0:07:34]} 11. Bb2 {[%emt 0:00:08]} f5 {[%emt 0:00:45]} 12. Ned2 {[%emt 0:00:03]} Bf6 {[%emt 0:00:57]} 13. Rc1 {[%emt 0:01:42][%cal Oc1c6]} Ncb4 {[%emt 0:20:47]} 14. Nxd4 {[%emt 0:01:15]} Nxa2 {[%emt 0:02:17]} 15. Rc5 {[%emt 0:03:55]} Ndc3 {[%emt 0:05:13]} 16. Bxc3 {[%emt 0:00:10]} Nxc3 {[%emt 0:00:06][%mdl 64] [#] Remove Defender} (16... Bxd4 $2 17. Bxd4 Qxd4 18. Rc4 $18 (18. Rxc7 Nc3 $16)) 17. Rxc3 {[%emt 0:00:05]} Bxd4 {[%emt 0:00:08]} 18. Rc1 {[%emt 0:00:16]} c6 {[%emt 0:00:39]} 19. e3 {[%emt 0:00:23]} Bb2 {[%emt 0:01:36][%csl LRc1,LRd3]} 20. Rc2 {[%emt 0:00:02]} Bf6 {[%emt 0:00:09]} 21. d4 {[%emt 0:00:04]} Be6 {[%emt 0:00:22]} 22. b4 {[%emt 0:02:06]} a5 {[%emt 0:11:01]} (22... g6 $11) 23. bxa5 $14 {[%emt 0:00:03]} Rxa5 {[%emt 0:00:52]} 24. Nc4 {[%emt 0:04:21][%cal Bd2c4,Bc4b2,Bb2d3,Bd3f4][%mdl 32]} Rb5 {[%emt 0:03:19]} 25. Qe2 {[%emt 0:00:40]} Qe7 {[%emt 0:02:23]} 26. Ra1 {[%emt 0:01:51]} Rd8 {[%emt 0:03:09]} 27. Rcc1 {[%emt 0:06:14]} Qb4 {[%emt 0:03:28]} 28. Bf1 {[%emt 0:05:02]} Qe7 {[%emt 0:01:48]} 29. Nb2 {[%emt 0:02:30]} Bd5 {[%emt 0:01:40][%cal Ob5b2]} 30. Nd3 {[%emt 0:01:33]} Qe4 {[%emt 0:04:51][%csl Gd5][%cal Re4h1] [#]} 31. f3 $1 Qe7 {[%emt 0:01:18]} ({Much less strong is} 31... Qxf3 32. Qxf3 Bxf3 33. Ne1 $14) 32. Nf4 {[%emt 0:02:29]} Bf7 {[%emt 0:04:04]} 33. Ng2 {[%emt 0:00:12]} Rb3 {[%emt 0:01:15]} 34. Rcb1 {[%emt 0:01:33]} c5 {[%emt 0:03:55]} 35. Rxb3 {[%emt 0:03:47]} Bxb3 {[%emt 0:00:01]} 36. Qb5 {[%emt 0:00:24][%csl LRb3,LRc5]} Bf7 {[%emt 0:01:28] The position is equal.} 37. Ra7 {[%emt 0:00:08][%cal Ba1a7,Ba7b7,Bb7b5][%mdl 32]} cxd4 {[%emt 0:00:51] Strongly threatening ...Bd5.} 38. Rxb7 {[%emt 0:00:04]} Qe5 {[%emt 0:03:05] Threatens to win with ...Qxb5.} 39. Bc4 {[%emt 0:01:42]} Qxb5 {[%emt 0:01:59]} 40. Bxf7+ {[%emt 0:00:04]} Kf8 {[%emt 0:00:05]} 41. Rxb5 {[%emt 0:00:10] Bb3 would be deadly.} Kxf7 $11 {[%emt 0:00:02][%mdl 4096] Endgame KRB-KRN} 42. Kf1 {[%emt 0:00:24]} g6 {[%emt 0:01:12]} 43. Rb7+ {[%emt 0:00:21]} Kg8 {[%emt 0:00:22]} 44. exd4 {[%emt 0:00:14]} Bxd4 {[%emt 0:00:22]} 45. h4 {[%emt 0:06:48]} Be5 {[%emt 0:00:37]} 46. f4 {[%emt 0:00:05]} Bf6 {[%emt 0:00:16]} 47. Ne1 {[%emt 0:00:33] Inhibits Rd3.} Rd2 {[%emt 0:00:44]} 48. Nf3 {[%emt 0:00:07] Dodges Bd4} Ra2 {[%emt 0:00:14]} 49. h5 {[%emt 0:00:13]} Ra3 {[%emt 0:00:35]} 50. Kg2 {[%emt 0:00:13]} Ra2+ {[%emt 0:00:17]} 51. Kh3 {[%emt 0:00:03]} Ra3 {[%emt 0:00:42]} 52. Nh4 {[%emt 0:00:18]} Bxh4 (52... Ra6 {is interesting.} 53. hxg6 Bxh4 54. gxh7+ Kh8) 53. Kxh4 {[%emt 0:00:02] KR-KR} Rc3 {[%emt 0:01:16]} 54. h6 {[%emt 0:05:20]} Rc8 {[%emt 0:00:10]} 55. Kg5 {[%emt 0:00:39]} Rf8 {[%emt 0:00:25]} 56. Rc7 {[%emt 0:00:23]} Kh8 {[%emt 0:00:15]} 57. Rg7 {[%emt 0:00:21]} Ra8 {[%emt 0:00:13]} 58. Kf6 {[%emt 0:00:27]} Ra6+ {[%emt 0:00:16]} 59. Ke5 {[%emt 0:00:04]} Ra5+ {[%emt 0:00:56]} 60. Kd6 {[%emt 0:00:21]} Ra6+ {[%emt 0:00:11]} 61. Kc5 {[%emt 0:00:09]} Ra1 {[%emt 0:01:32]} 62. Rb7 {[%emt 0:00:18][%cal Rb7b8]} Ra8 {[%emt 0:00:28] Repels Rb8+} 63. Kd6 {[%emt 0:00:19]} Kg8 {[%emt 0:00:35]} 64. Rg7+ {[%emt 0:00:47]} Kh8 {[%emt 0:00:01]} 65. Rd7 {[%emt 0:00:21]} Kg8 {[%emt 0:00:38]} 66. Ke7 {[%emt 0:00:18]} Rf8 {[%emt 0:00:17]} 67. Ke6 {[%emt 0:00:39]} Ra8 {[%emt 0:00:43]} 68. Rd6 {[%emt 0:02:06]} Re8+ {[%emt 0:00:25]} 69. Kf6 {[%emt 0:01:02]} Rf8+ {[%emt 0:00:04]} 70. Ke7 {[%emt 0:00:06]} Rf7+ {[%emt 0:00:23]} 71. Ke6 {[%emt 0:00:08]} Rf8 {[%emt 0:00:10]} 72. Rd1 {[%emt 0:00:12]} Re8+ {[%emt 0:00:20]} 73. Kf6 {[%emt 0:00:02]} Rf8+ {[%emt 0:00:19]} 74. Kg5 {[%emt 0:00:03]} Ra8 {[%emt 0:00:30]} 75. g4 {[%emt 0:00:09]} fxg4 {[%emt 0:00:45]} 76. Kxg4 {[%emt 0:00:05]} Ra7 {[%emt 0:01:57]} 77. Rd8+ {[%emt 0:00:13]} Kf7 {[%emt 0:00:01]} 78. Rh8 $1 {[%emt 0:00:18]} Kf6 {[%emt 0:00:04]} 79. Kf3 {[%emt 0:00:33]} Re7 {[%emt 0:00:45]} 80. Rf8+ {[%emt 0:00:28]} Rf7 {[%emt 0:00:27]} 81. Ra8 {[%emt 0:00:03]} Re7 {[%emt 0:00:26]} 82. Kg4 {[%emt 0:00:07]} Rb7 {[%emt 0:00:30]} 83. Ra6+ {[%emt 0:00:31]} Kf7 {[%emt 0:00:15]} 84. Rc6 {[%emt 0:01:34] Weighted Error Value: White=0.03 (flawless) /Black=0.04 (flawless)} 1/2-1/2

[Event "35th Roquetas Festival 2024"]
[Site "Roquetas de Mar"]
[Date "2024.01.04"]
[Round "5.8"]
[White "Iglesias Ferreira, Andres"]
[Black "Espinosa Aranda, Angel"]
[Result "0-1"]
[ECO "B56"]
[WhiteElo "2278"]
[BlackElo "2431"]
[Annotator "RC"]
[PlyCount "54"]
[EventDate "2024.01.02"]
[EventType "swiss"]
[EventCountry "ESP"]
[SourceTitle "playchess.com"]
[Source "ChessBase"]
[SourceQuality "1"]
[TimeControl "5400+30"]

1. e4 {[%emt 0:03:31]} c5 {[%emt 0:00:19]} 2. Nf3 {[%emt 0:00:13]} d6 {[%emt 0:00:19]} 3. d4 {[%emt 0:01:16]} cxd4 {[%emt 0:00:08]} 4. Nxd4 {[%emt 0:00:33]} Nf6 {[%emt 0:00:14]} 5. Nc3 {[%emt 0:00:23]} Bd7 {[%emt 0:00:28]} 6. Bg5 {[%emt 0:01:32]} e6 {[%emt 0:00:06]} 7. Qd2 {[%emt 0:00:26]} a6 {[%emt 0:00:05]} 8. O-O-O {[%emt 0:00:33]} h6 {[%emt 0:00:05]} 9. Bh4 {[%emt 0:01:57]} Nxe4 {[%emt 0:00:55]} 10. Qf4 {[%emt 0:04:12]} Ng5 {[%emt 0:00:26]} 11. Qg3 {[%emt 0:13:46]} Be7 {[%emt 0:14:02]} 12. f4 {[%emt 0:00:57]} O-O {[%emt 0:00:05]} 13. fxg5 {[%emt 0:02:26]} hxg5 {[%emt 0:01:08]} 14. Qf3 {[%emt 0:01:11]} e5 {[%emt 0:17:08]} 15. Bg3 {[%emt 0:16:18]} exd4 {[%emt 0:00:26]} 16. Rxd4 {[%emt 0:00:34]} Nc6 {[%emt 0:00:45]} 17. Rd1 {[%emt 0:01:47]} Be6 {[%emt 0:02:56]} 18. Bd3 {[%emt 0:05:02]} g4 {[%emt 0:06:02]} 19. Qe4 {[%emt 0:02:04]} g6 {[%emt 0:00:08]} 20. Qe2 {[%emt 0:05:02]} Re8 {[%emt 0:02:24]} 21. Qd2 {[%emt 0:04:23]} Ne5 {[%emt 0:02:07]} 22. Kb1 {[%emt 0:00:56]} Rc8 {[%emt 0:05:47]} 23. Rhe1 {[%emt 0:00:48]} Bg5 {[%emt 0:11:50]} 24. Qf2 {[%emt 0:05:25]} Rxc3 {[%emt 0:03:54]} 25. Bxe5 {[%emt 0:02:03]} Qa5 {[%emt 0:03:27]} 26. Bf4 {[%emt 0:04:07]} Rxd3 {[%emt 0:07:05]} 27. cxd3 {[%emt 0:00:58]} Bxa2+ {[%emt 0:01:06]} 0-1

[Event "35th Roquetas Festival 2024"]
[Site "Roquetas de Mar"]
[Date "2024.01.04"]
[Round "5.9"]
[White "Fiorito, Joaquin"]
[Black "Garijo Perez, Hugo"]
[Result "1-0"]
[ECO "A80"]
[WhiteElo "2401"]
[BlackElo "2270"]
[Annotator "RC"]
[PlyCount "49"]
[EventDate "2024.01.02"]
[EventType "swiss"]
[EventCountry "ESP"]
[SourceTitle "playchess.com"]
[Source "ChessBase"]
[SourceQuality "1"]
[TimeControl "5400+30"]

1. d4 {[%emt 0:00:01]} f5 {[%emt 0:00:32]} 2. Bg5 {[%emt 0:00:06]} Nf6 {[%emt 0:00:34]} 3. e3 {[%emt 0:01:14]} Ne4 {[%emt 0:02:05]} 4. Bf4 {[%emt 0:00:23]} d6 {[%emt 0:00:27]} 5. Nf3 {[%emt 0:00:58]} g6 {[%emt 0:00:30]} 6. Bc4 {[%emt 0:00:59]} Bg7 {[%emt 0:02:05]} 7. Nbd2 {[%emt 0:03:00]} e6 {[%emt 0:03:59]} 8. h3 {[%emt 0:02:47]} O-O {[%emt 0:03:12]} 9. Qe2 {[%emt 0:05:17]} a6 {[%emt 0:02:32]} 10. Nxe4 {[%emt 0:03:59]} fxe4 {[%emt 0:00:02]} 11. Nd2 {[%emt 0:00:06]} d5 {[%emt 0:00:23]} 12. Bb3 {[%emt 0:00:18]} c5 {[%emt 0:03:19]} 13. dxc5 {[%emt 0:05:16]} Bxb2 {[%emt 0:05:25]} 14. Rd1 {[%emt 0:00:02]} Nc6 {[%emt 0:06:14]} 15. Bd6 {[%emt 0:03:19]} Re8 {[%emt 0:22:31]} 16. O-O {[%emt 0:01:47]} b5 {[%emt 0:09:28]} 17. f3 {[%emt 0:00:59]} Be5 {[%emt 0:03:05]} 18. fxe4 {[%emt 0:01:39]} Bxd6 {[%emt 0:01:37]} 19. cxd6 {[%emt 0:00:03]} d4 {[%emt 0:04:55]} 20. Nf3 {[%emt 0:01:02]} Qxd6 {[%emt 0:00:48]} 21. exd4 {[%emt 0:00:06]} Bb7 {[%emt 0:00:46]} 22. Ng5 {[%emt 0:04:42]} Rad8 {[%emt 0:06:31]} 23. Nxe6 {[%emt 0:02:11]} Rxe6 {[%emt 0:00:16]} 24. Bxe6+ {[%emt 0:00:11]} Qxe6 {[%emt 0:00:07]} 25. d5 {[%emt 0:00:04]} 1-0

[Event "35th Roquetas Festival 2024"]
[Site "Roquetas de Mar"]
[Date "2024.01.04"]
[Round "5.10"]
[White "Revaliente Montoya, Ciro"]
[Black "Stremavicius, Pijus"]
[Result "0-1"]
[ECO "B35"]
[WhiteElo "2263"]
[BlackElo "2393"]
[Annotator "RC"]
[PlyCount "84"]
[EventDate "2024.01.02"]
[EventType "swiss"]
[EventCountry "ESP"]
[SourceTitle "playchess.com"]
[Source "ChessBase"]
[SourceQuality "1"]
[TimeControl "5400+30"]

1. e4 {[%emt 0:08:32]} c5 {[%emt 0:00:13]} 2. Nf3 {[%emt 0:00:17]} Nc6 {[%emt 0:00:09]} 3. d4 {[%emt 0:00:07]} cxd4 {[%emt 0:00:06]} 4. Nxd4 {[%emt 0:00:04]} g6 {[%emt 0:00:10]} 5. Nc3 {[%emt 0:00:51]} Bg7 {[%emt 0:00:07]} 6. Be3 {[%emt 0:00:03]} Nf6 {[%emt 0:00:05]} 7. Bc4 {[%emt 0:00:07]} O-O {[%emt 0:00:06]} 8. Bb3 {[%emt 0:00:04]} a6 {[%emt 0:00:07]} 9. f3 {[%emt 0:05:25]} Qc7 {[%emt 0:00:15]} 10. Qd2 {[%emt 0:02:50]} b5 {[%emt 0:00:06]} 11. O-O-O {[%emt 0:02:28]} Bb7 {[%emt 0:00:05]} 12. h4 {[%emt 0:01:04]} h5 {[%emt 0:00:05]} 13. g4 {[%emt 0:06:21]} e6 {[%emt 0:00:25]} 14. g5 {[%emt 0:05:16]} Ne8 {[%emt 0:00:52]} 15. Nde2 {[%emt 0:10:17]} d6 {[%emt 0:00:29]} 16. f4 {[%emt 0:06:38]} Na5 {[%emt 0:00:50]} 17. Qd3 {[%emt 0:09:46]} Rc8 {[%emt 0:02:31]} 18. f5 {[%emt 0:08:36]} exf5 {[%emt 0:02:38]} 19. exf5 {[%emt 0:01:06]} Bxh1 {[%emt 0:11:45]} 20. Rxh1 {[%emt 0:01:37]} Nxb3+ {[%emt 0:04:03]} 21. axb3 {[%emt 0:00:06]} Be5 {[%emt 0:17:55]} 22. Nd5 {[%emt 0:04:16]} Qb7 {[%emt 0:00:12]} 23. Rg1 {[%emt 0:09:25]} Ng7 {[%emt 0:02:33]} 24. Nf6+ {[%emt 0:01:06]} Kh8 {[%emt 0:00:55]} 25. fxg6 {[%emt 0:00:31]} Qf3 {[%emt 0:00:09]} 26. Nd4 {[%emt 0:08:43]} Bxd4 {[%emt 0:01:16]} 27. Qxd4 {[%emt 0:00:01]} fxg6 {[%emt 0:00:15]} 28. Nd5 {[%emt 0:01:35]} Rfe8 {[%emt 0:02:47]} 29. Bd2 {[%emt 0:00:32]} Re5 {[%emt 0:10:58]} 30. Nf4 {[%emt 0:01:51]} Kh7 {[%emt 0:00:31]} 31. Qxd6 {[%emt 0:01:24]} Qe4 {[%emt 0:04:04]} 32. c3 {[%emt 0:00:48]} Rc6 {[%emt 0:00:35]} 33. Qd7 {[%emt 0:00:15]} Re7 {[%emt 0:04:10]} 34. Qd8 {[%emt 0:00:09]} Re8 {[%emt 0:03:52]} 35. Qd7 {[%emt 0:00:17]} Rc5 {[%emt 0:02:22]} 36. Qa7 {[%emt 0:05:11]} Rf5 {[%emt 0:03:07]} 37. Rf1 {[%emt 0:00:47]} Qc6 {[%emt 0:00:48]} 38. Rf2 {[%emt 0:00:25]} Ref8 {[%emt 0:00:43]} 39. Be3 {[%emt 0:00:38]} R8f7 {[%emt 0:00:24]} 40. Qb8 {[%emt 0:00:18]} Ne6 {[%emt 0:01:14]} 41. Nxe6 {[%emt 0:00:41]} Qxe6 {[%emt 0:01:13]} 42. Re2 {[%emt 0:00:27]} Re5 {[%emt 0:01:11]} 0-1